bitfinex-derivatives/quotes_SOLF0:USTF0_20241010
["timestamp","ask_amount","ask_price","bid_price","bid_amount"]
[1728583082436,40.68,136.9,136.87,2.19162]
[1728583082634,40.68,136.9,136.85,0.12502]
[1728583082937,3.6572,136.86,136.85,0.12502]
[1728583083133,3.6572,136.86,136.85,2.31744]
[1728583084140,3.6572,136.86,136.85,0.12502]
[1728583086826,3.6572,136.86,136.85,2.31744]
[1728583087026,3.657,136.87,136.85,2.31744]
[1728583087432,9.78,136.89,136.85,2.31744]
[1728583087730,3.6572,136.86,136.85,2.31744]
[1728583087931,9.78,136.89,136.85,2.31744]
[1728583088128,3.6568,136.88,136.85,2.31744]
[1728583088936,13.4365,136.89,136.85,5.97484]
[1728583089143,13.4365,136.89,136.85,2.31744]
[1728583089339,13.4365,136.89,136.86,3.657]
[1728583089530,13.4365,136.89,136.85,2.31744]
[1728583089732,3.6567,136.88,136.85,2.31744]
[1728583089933,3.6567,136.88,136.85,5.97474]
[1728583090131,9.34,136.92,136.85,2.31744]
[1728583090335,3.6569,136.87,136.85,2.31744]
[1728583090539,9.34,136.92,136.85,2.31744]
[1728583091038,9.34,136.92,136.86,3.6571]
[1728583091250,33.6559,136.95,136.85,2.31744]
[1728583091541,10.59750771,136.94,136.85,2.31744]
[1728583091745,9.34,136.94,136.85,2.31744]
[1728583092133,9.34,136.94,136.86,3.657]
[1728583092332,9.34,136.94,136.85,2.31744]
[1728583092741,30.9,136.93,136.85,2.31744]
[1728583092942,3.71754578,136.92,136.85,2.31744]
[1728583093144,3.6572,136.86,136.85,2.31744]
[1728583094240,3.6571,136.87,136.85,2.31744]
[1728583094543,9.34,136.89,136.85,2.31744]
[1728583094744,3.6572,136.86,136.85,2.31744]
[1728583095136,9.34,136.89,136.85,2.31744]
[1728583095733,3.6572,136.86,136.85,2.31744]
[1728583096036,30.9,136.91,136.83,2.19242]
[1728583096037,30.9,136.88,136.83,2.19242]
[1728583096243,30.9,136.86,136.8,2.19242]
[1728583096940,3.6584,136.82,136.8,2.19242]
[1728583097344,30.9,136.86,136.8,2.19242]
[1728583097539,3.6585,136.81,136.8,2.19242]
[1728583097945,40.24,136.84,136.79,0.12502]
[1728583098244,3.6588,136.8,136.79,0.12502]
[1728583103051,1.3598,136.86,136.79,0.12502]
[1728583103240,9.34,136.85,136.79,2.31744]
[1728583103948,3.658,136.83,136.79,5.97634]
[1728583104149,3.658,136.83,136.79,2.31744]
[1728583104350,3.658,136.83,136.79,5.97644]
[1728583104543,3.6583,136.82,136.79,2.31744]
[1728583104946,13.02614206,136.85,136.79,2.31744]
[1728583105145,3.6588,136.8,136.79,0.12502]
[1728583106045,13.02614206,136.85,136.79,0.12502]
[1728583106244,13.02614206,136.85,136.79,2.31744]
[1728583106245,1.25380868,136.84,136.79,2.31744]
[1728583106440,1.25380868,136.84,136.79,0.12502]
[1728583106841,32.18380868,136.84,136.79,2.31744]
[1728583107149,30.93,136.84,136.79,2.31744]
[1728583107449,30.93,136.8,136.73,230.69406]
[1728583107644,8.94,136.79,136.73,230.69406]
[1728583107852,8.94,136.79,136.73,232.88648]
[1728583108744,8.94,136.79,136.73,236.54698]
[1728583109053,3.6597,136.77,136.73,236.54698]
[1728583109246,8.94,136.79,136.73,232.88648]
[1728583109855,3.6593,136.78,136.74,3.6602]
[1728583110047,8.94,136.79,136.73,232.88648]
[1728583110247,0.12502,136.85,136.73,232.88648]
[1728583110448,10.19332099,136.84,136.75,30.93]
[1728583110651,8.94,136.84,136.76,1.3612]
[1728583110853,3.6582,136.83,136.78,3.6591]
[1728583111055,3.6582,136.83,136.77,2.8256]
[1728583111258,8.94,136.84,136.77,2.8256]
[1728583111458,3.6587,136.81,136.77,8.67742]
[1728583111658,3.6587,136.81,136.77,5.01802]
[1728583112161,3.6587,136.81,136.78,3.6593]
[1728583112661,3.6583,136.82,136.78,5.85172]
[1728583112859,3.6583,136.82,136.79,3.659]
[1728583113658,8.94,136.84,136.79,2.19242]
[1728583113861,0.12502,136.85,136.79,2.19242]
[1728583114565,0.12502,136.85,136.79,33.12242]
[1728583115056,0.12502,136.85,136.84,3.6577]
[1728583115263,9.06502,136.91,136.84,2.19242]
[1728583115461,3.6568,136.88,136.85,3.6572]
[1728583115658,9.06502,136.91,136.85,1.3371]
[1728583115959,3.6566,136.89,136.84,2.19242]
[1728583116168,30.93,136.9,136.82,1.3371]
[1728583116358,1.25292909,136.89,136.82,1.3371]
[1728583116552,30.93,136.87,136.82,1.3371]
[1728583116859,30.93,136.87,136.79,0.12502]
[1728583117054,3.6584,136.82,136.79,2.31744]
[1728583117664,8.94,136.86,136.79,2.31744]
[1728583117860,3.6582,136.83,136.79,5.97634]
[1728583118359,8.94,136.86,136.79,5.97634]
[1728583118565,30.92,136.81,136.73,230.69406]
[1728583118765,39.86,136.81,136.73,230.69406]
[1728583119074,39.86,136.81,136.73,232.88712]
[1728583119770,1.25191715,136.8,136.73,232.88712]
[1728583119969,30.92,136.79,136.73,232.88712]
[1728583120170,3.6604,136.74,136.73,230.69406]
[1728583121079,3.6604,136.74,136.73,232.88712]
[1728583124270,34.5804,136.74,136.73,107.26406]
[1728583125079,34.5804,136.74,136.73,71.41746421]
[1728583125376,35.83157579,136.74,136.73,67.17316421]
[1728583125569,35.8315122,136.74,136.73,67.17316421]
[1728583126074,35.8315122,136.74,136.73,58.49466421]
[1728583126276,35.8315122,136.74,136.73,44.78926421]
[1728583126868,3.6632,136.64,136.56,8.94]
[1728583127075,3.6632,136.64,136.6,1.3631]
[1728583127371,3.6632,136.64,136.6,3.55857]
[1728583127769,3.6632,136.64,136.6,7.22267]
[1728583128169,30.92,136.68,136.6,7.22267]
[1728583128373,30.92,136.68,136.6,3.55857]
[1728583128775,3.6627,136.66,136.6,3.55857]
[1728583129373,3.78732,136.67,136.62,3.6634]
[1728583129576,0.12502,136.67,136.6,1.3631]
[1728583129779,0.12502,136.67,136.6,3.55857]
[1728583129973,3.6628,136.65,136.62,3.53858]
[1728583130180,3.6628,136.65,136.6,1.3631]
[1728583130370,0.12502,136.67,136.6,3.55857]
[1728583130570,3.6626,136.66,136.62,3.6634]
[1728583130977,3.6626,136.66,136.62,5.85887]
[1728583132278,3.6633,136.63,136.62,2.19547]
[1728583134985,3.6636,136.62,136.61,2.19547]
[1728583135276,8.94,136.65,136.61,2.19547]
[1728583135680,3.6636,136.62,136.61,2.19547]
[1728583137976,30.92,136.64,136.6,2.19547]
[1728583138179,30.92,136.64,136.58,3.57967]
[1728583138581,3.6644,136.6,136.58,3.57967]
[1728583139585,3.6635,136.63,136.58,3.57967]
[1728583139785,8.62,136.64,136.58,3.57967]
[1728583140095,3.72686902,136.67,136.58,7.24427]
[1728583140287,8.62,136.66,136.58,7.24427]
[1728583140483,8.62,136.66,136.58,3.57967]
[1728583141192,3.6632,136.64,136.58,3.57967]
[1728583141394,8.62,136.66,136.58,3.57967]
[1728583141991,39.54,136.66,136.58,2.19547]
[1728583142196,3.664,136.61,136.58,2.19547]
[1728583143791,39.54,136.66,136.58,2.19547]
[1728583144389,3.6632,136.64,136.58,2.19547]
[1728583144692,30.92,136.66,136.58,2.19547]
[1728583144891,8.74502,136.67,136.58,2.19547]
[1728583145595,3.6627,136.66,136.58,2.19547]
[1728583145794,3.6627,136.66,136.63,3.6633]
[1728583145981,0.12502,136.67,136.58,2.19547]
[1728583146187,3.6625,136.66,136.59,30.92]
[1728583146388,0.12502,136.67,136.61,3.6636]
[1728583146587,0.12502,136.67,136.61,5.85907]
[1728583146790,3.663,136.65,136.61,5.85907]
[1728583147503,3.6631,136.64,136.61,2.19547]
[1728583147794,8.62,136.64,136.6,2.19547]
[1728583148091,3.6635,136.63,136.57,3.56447]
[1728583148298,8.62,136.64,136.57,3.56447]
[1728583148695,3.664,136.61,136.57,3.56447]
[1728583149186,3.664,136.61,136.58,3.6645]
[1728583150093,3.664,136.61,136.58,5.85997]
[1728583150298,8.62,136.64,136.58,5.85997]
[1728583150599,3.6642,136.6,136.58,2.19547]
[1728583150894,3.664,136.61,136.58,2.19547]
[1728583151196,8.62,136.64,136.58,2.19547]
[1728583152394,3.6637,136.62,136.59,3.6643]
[1728583152600,8.62,136.64,136.58,2.19547]
[1728583152789,3.664,136.61,136.58,5.85997]
[1728583153692,3.664,136.61,136.59,3.6644]
[1728583154091,3.6637,136.62,136.59,3.6644]
[1728583154300,8.62,136.64,136.59,5.85987]
[1728583155104,3.6637,136.62,136.59,5.85987]
[1728583155302,19.35,136.65,136.59,2.19547]
[1728583155504,0.12502,136.67,136.61,19.35]
[1728583155802,3.78732,136.67,136.62,1.3227]
[1728583156101,3.78732,136.67,136.63,3.6631]
[1728583156298,3.6631,136.64,136.62,1.3227]
[1728583156603,19.47502,136.67,136.62,2.19547]
[1728583156905,0.12502,136.67,136.62,2.19547]
[1728583157303,0.12502,136.67,136.63,1.3734]
[1728583157500,0.12502,136.67,136.64,3.6629]
[1728583157799,0.12502,136.67,136.64,5.85837]
[1728583157999,0.12502,136.67,136.64,2.19547]
[1728583158495,19.47502,136.67,136.47,11.0029]
[1728583158696,19.47502,136.67,136.6,3.664]
[1728583159096,19.47502,136.67,136.61,3.6637]
[1728583159406,19.47502,136.67,136.61,5.85917]
[1728583159705,3.6629,136.65,136.61,5.85917]
[1728583159900,3.6629,136.65,136.62,3.6635]
[1728583160601,0.12502,136.67,136.63,3.6632]
[1728583160805,0.12502,136.67,136.62,2.19547]
[1728583161302,0.12502,136.67,136.64,3.6629]
[1728583161603,0.12502,136.67,136.62,2.19547]
[1728583162106,3.6628,136.65,136.62,2.19547]
[1728583162297,0.12502,136.67,136.62,2.19547]
[1728583162501,0.12502,136.67,136.64,3.663]
[1728583162805,0.12502,136.67,136.64,5.85847]
[1728583163205,0.12502,136.67,136.65,3.6627]
[1728583163401,0.12502,136.67,136.65,2.19547]
[1728583164000,0.12502,136.67,136.65,5.85817]
[1728583164298,0.12502,136.67,136.65,2.19547]
[1728583165011,0.12502,136.67,136.65,5.85827]
[1728583165906,0.12502,136.67,136.65,2.19547]
[1728583167012,3.78742,136.67,136.65,2.19547]
[1728583167209,0.12502,136.67,136.65,2.19547]
[1728583168106,3.78732,136.67,136.65,2.19547]
[1728583168307,3.78732,136.67,136.63,3.6632]
[1728583168507,3.78732,136.67,136.62,21.54547]
[1728583168808,3.78732,136.67,136.63,3.6632]
[1728583169014,3.78732,136.67,136.63,5.85867]
[1728583170112,0.12502,136.67,136.63,5.85867]
[1728583170417,0.12502,136.67,136.63,2.19547]
[1728583170801,3.6629,136.65,136.63,2.19547]
[1728583171513,3.663,136.64,136.63,2.19547]
[1728583172513,0.12502,136.67,136.62,2.19547]
[1728583172713,19.35,136.65,136.59,1.3734]
[1728583173011,31.16141952,136.66,136.59,3.56887]
[1728583173619,27.55,136.66,136.59,7.23317]
[1728583174206,3.6635,136.63,136.6,3.6641]
[1728583174613,27.55,136.66,136.6,3.6641]
[1728583174814,3.6632,136.64,136.61,3.6638]
[1728583175011,3.6632,136.64,136.61,5.85927]
[1728583175317,3.6632,136.64,136.61,2.19547]
[1728583175614,8.2,136.66,136.61,2.19547]
[1728583176013,3.6635,136.63,136.61,2.19547]
[1728583176714,27.55,136.66,136.61,2.19547]
[1728583176905,19.47502,136.67,136.61,2.19547]
[1728583177213,8.2,136.66,136.61,2.19547]
[1728583177406,11.8627,136.66,136.62,3.6635]
[1728583178008,3.6629,136.65,136.62,2.19547]
[1728583179114,8.2,136.66,136.62,2.19547]
[1728583179812,3.6631,136.64,136.62,2.19547]
[1728583180017,8.2,136.66,136.6,2.19547]
[1728583180512,3.6634,136.63,136.6,5.85947]
[1728583182812,8.2,136.66,136.61,3.6638]
[1728583183014,0.12502,136.67,136.62,19.35]
[1728583183210,0.12502,136.67,136.61,2.19547]
[1728583183415,0.12502,136.67,136.65,3.6626]
[1728583183616,0.12502,136.67,136.65,8.62497]
[1728583184520,0.12502,136.73,136.65,4.96237]
[1728583184723,0.12502,136.73,136.7,19.35]
[1728583185022,0.12502,136.73,136.71,1.4406]
[1728583185422,0.12502,136.73,136.71,3.63607]
[1728583186327,3.78582,136.73,136.71,3.63607]
[1728583186520,0.12502,136.73,136.71,3.63607]
[1728583186721,0.12502,136.73,136.71,2.19547]
[1728583187521,3.78582,136.73,136.71,2.19547]
[1728583188024,0.12502,136.73,136.71,2.19547]
[1728583188225,3.78572,136.73,136.71,2.19547]
[1728583189022,0.12502,136.73,136.71,2.19547]
[1728583190238,3.78582,136.73,136.71,2.19547]
[1728583190525,0.12502,136.73,136.71,2.19547]
[1728583190730,3.78582,136.73,136.71,2.19547]
[1728583191127,0.12502,136.73,136.71,2.19547]
[1728583191731,3.6609,136.72,136.71,2.19547]
[1728583193636,3.78572,136.73,136.71,2.19547]
[1728583193930,0.12502,136.73,136.71,5.85657]
[1728583194137,0.12502,136.73,136.71,2.19547]
[1728583194733,3.78582,136.73,136.71,2.19547]
[1728583195140,0.12502,136.73,136.71,2.19547]
[1728583196535,3.78582,136.73,136.71,2.19547]
[1728583197640,3.6609,136.72,136.71,2.19547]
[1728583197831,0.12502,136.73,136.71,2.19547]
[1728583198433,3.78582,136.73,136.71,2.19547]
[1728583198630,0.12502,136.73,136.71,2.19547]
[1728583198831,27.35502,136.73,136.69,2.19547]
[1728583199033,19.35,136.7,136.65,7.18437]
[1728583199243,19.35,136.7,136.65,2.19547]
[1728583199636,19.35,136.68,136.65,2.19547]
[1728583199832,19.35,136.68,136.62,1.414]
[1728583199833,3.6624,136.67,136.64,2.19547]
[1728583200037,3.6624,136.67,136.63,3.6633]
[1728583200632,19.35,136.67,136.61,1.45322]
[1728583200837,19.35,136.67,136.63,2.19547]
[1728583201033,19.35,136.65,136.61,0.12502]
[1728583201242,3.6633,136.63,136.61,0.12502]
[1728583201439,27.23,136.65,136.61,0.12502]
[1728583201642,3.6636,136.62,136.61,0.12502]
[1728583201835,19.35,136.62,136.55,0.12502]
[1728583202035,19.35,136.58,136.55,0.12502]
[1728583202437,7.88,136.61,136.55,0.12502]
[1728583202438,19.35,136.59,136.55,0.12502]
[1728583202633,27.23,136.61,136.55,0.12502]
[1728583202840,27.23,136.61,136.55,2.32185]
[1728583202841,7.88,136.61,136.55,2.32185]
[1728583203235,3.6648,136.59,136.55,5.98765]
[1728583203533,7.88,136.61,136.55,2.32185]
[1728583203842,7.88,136.61,136.55,0.12502]
[1728583203843,3.6649,136.59,136.55,0.12502]
[1728583204045,19.35,136.6,136.55,0.12502]
[1728583205037,19.35,136.59,136.55,0.12502]
[1728583205240,3.6656,136.56,136.55,0.12502]
[1728583206338,3.6672,136.5,136.49,0.12502]
[1728583206533,19.35,136.6,136.49,0.12502]
[1728583206534,19.35,136.52,136.49,0.12502]
[1728583206735,7.88,136.53,136.49,19.47502]
[1728583207236,7.88,136.53,136.49,0.12502]
[1728583207442,3.6671,136.51,136.49,0.12502]
[1728583207745,7.88,136.53,136.49,3.79242]
[1728583207934,7.88,136.53,136.49,19.47502]
[1728583208336,7.88,136.56,136.51,3.6669]
[1728583208549,7.88,136.56,136.5,2.7436]
[1728583208940,7.88,136.56,136.5,4.94116]
[1728583209741,7.88,136.56,136.5,2.7436]
[1728583209939,31.0,136.59,136.5,2.7436]
[1728583210245,3.666,136.55,136.5,4.94116]
[1728583210439,7.88,136.56,136.5,4.94116]
[1728583210641,3.666,136.55,136.51,3.6668]
[1728583210841,7.88,136.56,136.51,3.6668]
[1728583211251,7.88,136.56,136.51,2.19756]
[1728583211755,7.88,136.56,136.53,3.6662]
[1728583212047,31.12502,136.61,136.51,33.19756]
[1728583212237,7.88,136.6,136.51,33.19756]
[1728583212436,31.0,136.58,136.51,2.19756]
[1728583212641,7.88,136.6,136.49,0.12502]
[1728583212642,31.0,136.56,136.5,2.19756]
[1728583212841,7.88,136.55,136.49,0.12502]
[1728583214049,3.6667,136.52,136.49,0.12502]
[1728583214344,7.88,136.59,136.49,2.32258]
[1728583214649,7.88,136.59,136.49,6.43608]
[1728583214850,31.0,136.58,136.49,6.43608]
[1728583216042,3.6663,136.54,136.5,3.667]
[1728583216242,7.88,136.55,136.49,6.43608]
[1728583216738,7.88,136.55,136.49,2.32258]
[1728583217138,7.88,136.55,136.5,3.667]
[1728583217342,7.88,136.55,136.49,2.32258]
[1728583217741,11.546,136.55,136.49,2.32258]
[1728583218547,7.88,136.55,136.49,2.32258]
[1728583218947,7.88,136.55,136.53,3.6662]
[1728583219146,11.546,136.55,136.49,2.32258]
[1728583219345,31.0,136.58,136.49,2.32258]
[1728583219551,7.88,136.57,136.49,2.32258]
[1728583219747,3.6657,136.56,136.49,2.32258]
[1728583220141,31.0,136.6,136.5,31.0]
[1728583220339,8.00502,136.61,136.52,31.0]
[1728583220544,8.00502,136.61,136.57,3.6653]
[1728583220744,3.6646,136.6,136.57,5.86286]
[1728583221037,8.00502,136.61,136.55,2.19756]
[1728583221247,31.0,136.6,136.55,2.19756]
[1728583221446,3.6652,136.58,136.55,2.19756]
[1728583221752,31.0,136.58,136.53,1.3179]
[1728583221944,8.00502,136.61,136.49,0.12502]
[1728583221945,7.88,136.57,136.49,0.12502]
[1728583222150,31.0,136.55,136.5,3.6671]
[1728583222350,31.0,136.55,136.5,5.86466]
[1728583222751,31.0,136.55,136.5,2.19756]
[1728583223146,31.0,136.55,136.49,2.32258]
[1728583223347,31.0,136.53,136.49,0.12502]
[1728583223547,11.5468,136.52,136.49,0.12502]
[1728583223741,7.88,136.52,136.49,0.12502]
[1728583225643,7.88,136.52,136.49,2.32258]
[1728583226053,7.88,136.52,136.49,5.98998]
[1728583226360,7.88,136.52,136.49,0.12502]
[1728583226657,7.88,136.52,136.5,3.6672]
[1728583226957,7.88,136.52,136.49,2.32258]
[1728583227160,7.74,136.55,136.49,2.32258]
[1728583227549,38.74,136.55,136.49,5.98978]
[1728583227759,38.74,136.55,136.49,2.32258]
[1728583228047,3.6666,136.53,136.49,2.32258]
[1728583228256,3.6666,136.53,136.5,3.667]
[1728583228444,38.74,136.55,136.49,2.32258]
[1728583228954,31.0,136.55,136.49,2.32258]
[1728583229152,38.74,136.55,136.49,2.32258]
[1728583229561,38.74,136.55,136.49,0.12502]
[1728583229856,31.0,136.53,136.49,0.12502]
[1728583230157,38.74,136.53,136.49,0.12502]
[1728583230751,7.74,136.53,136.49,0.12502]
[1728583230957,7.74,136.53,136.5,3.6669]
[1728583231456,7.74,136.53,136.5,2.19756]
[1728583231654,7.74,136.53,136.49,0.12502]
[1728583231956,38.74,136.53,136.49,0.12502]
[1728583232152,7.74,136.53,136.49,0.12502]
[1728583232559,3.6671,136.51,136.49,0.12502]
[1728583232766,7.74,136.53,136.49,0.12502]
[1728583234257,3.6672,136.5,136.49,0.12502]
[1728583235360,11.4072,136.5,136.49,0.12502]
[1728583236461,7.74,136.5,136.49,0.12502]
[1728583237754,11.4072,136.5,136.49,0.12502]
[1728583239260,42.88990528,136.63,136.49,0.12502]
[1728583239566,8.99494001,136.6,136.5,31.0]
[1728583239764,1.25494001,136.59,136.51,2.736]
[1728583240069,1.25494001,136.59,136.51,4.93356]
[1728583240268,31.0,136.58,136.51,4.93356]
[1728583240561,3.6656,136.56,136.51,4.93356]
[1728583240767,31.0,136.58,136.51,4.93356]
[1728583241668,31.0,136.58,136.5,2.19756]
[1728583242357,3.6661,136.55,136.5,5.86456]
[1728583242560,31.0,136.58,136.5,2.19756]
[1728583242861,7.74,136.57,136.5,3.54906]
[1728583243067,7.74,136.57,136.5,4.97786]
[1728583243271,11.4053,136.57,136.53,3.6662]
[1728583243566,7.74,136.6,136.53,2.19756]
[1728583243864,11.4046,136.6,136.53,2.19756]
[1728583244071,11.4046,136.6,136.54,1.3303]
[1728583244261,0.12502,136.61,136.59,3.6647]
[1728583244464,0.12502,136.61,136.59,5.86226]
[1728583244666,0.12502,136.61,136.59,2.19756]
[1728583244866,0.12502,136.61,136.6,3.6645]
[1728583245174,0.12502,136.61,136.6,5.86206]
[1728583245362,3.6634,136.65,136.61,3.664]
[1728583245566,0.12502,136.67,136.61,2.19756]
[1728583245866,3.6633,136.65,136.61,5.86166]
[1728583246057,7.86502,136.67,136.61,2.19756]
[1728583246660,3.6633,136.65,136.61,5.86166]
[1728583246959,7.86502,136.67,136.61,2.19756]
[1728583247360,31.0,136.65,136.61,2.19756]
[1728583247569,31.0,136.65,136.58,2.19756]
[1728583247765,3.6638,136.63,136.57,4.97076]
[1728583247960,7.72,136.62,136.57,4.97076]
[1728583248266,7.72,136.62,136.57,1.351]
[1728583248267,3.665,136.58,136.57,1.351]
[1728583248470,7.72,136.62,136.55,2.32258]
[1728583248681,7.72,136.62,136.55,1.56232]
[1728583248862,7.72,136.62,136.55,5.22802]
[1728583249068,7.72,136.62,136.55,3.75988]
[1728583249266,3.665,136.58,136.55,3.75988]
[1728583249571,7.72,136.62,136.55,2.32258]
[1728583249970,3.6648,136.59,136.55,5.98818]
[1728583250572,7.72,136.62,136.55,2.32258]
[1728583250873,7.72,136.62,136.55,0.12502]
[1728583251264,31.0,136.65,136.55,2.32258]
[1728583251468,9.39480243,136.64,136.55,2.32258]
[1728583251669,1.2548819,136.63,136.55,2.32258]
[1728583251872,8.14,136.64,136.55,2.32258]
[1728583252272,3.6642,136.62,136.55,2.32258]
[1728583252875,3.6642,136.62,136.58,3.6649]
[1728583253070,3.6642,136.62,136.55,2.32258]
[1728583253271,8.14,136.64,136.55,2.32258]
[1728583253479,3.6641,136.62,136.58,3.6649]
[1728583253775,8.14,136.64,136.55,2.32258]
[1728583253977,31.0,136.65,136.55,10.46258]
[1728583254176,8.14,136.64,136.55,41.46258]
[1728583254572,3.6643,136.61,136.58,3.6649]
[1728583255278,3.6643,136.61,136.58,5.86246]
[1728583255775,8.14,136.64,136.58,2.19756]
[1728583255977,31.0,136.61,136.55,0.12502]
[1728583256280,8.14,136.6,136.55,0.12502]
[1728583257077,8.14,136.6,136.55,3.79062]
[1728583257276,8.14,136.6,136.55,0.12502]
[1728583258082,3.6656,136.56,136.55,0.12502]
[1728583258271,8.14,136.6,136.55,0.12502]
[1728583259081,3.6656,136.56,136.55,0.12502]
[1728583260285,8.14,136.6,136.55,0.12502]
[1728583260679,8.14,136.59,136.55,0.12502]
[1728583260887,3.6644,136.61,136.57,3.6651]
[1728583261089,31.0,136.61,136.55,2.32258]
[1728583261292,31.0,136.61,136.55,0.12502]
[1728583261786,8.14,136.62,136.55,0.12502]
[1728583261990,3.6652,136.58,136.55,0.12502]
[1728583262200,8.14,136.62,136.55,0.12502]
[1728583262484,3.6656,136.56,136.55,0.12502]
[1728583263698,3.6656,136.56,136.55,0.00132]
[1728583263885,38.41258403,136.56,136.55,0.00132]
[1728583264089,31.0,136.56,136.49,0.12502]
[1728583264587,3.6671,136.51,136.49,0.12502]
[1728583264786,8.14,136.52,136.49,0.12502]
[1728583265596,3.6672,136.5,136.49,0.12502]
[1728583270494,3.6303949,136.54,136.49,0.12502]
[1728583270693,9.39364844,136.53,136.49,0.12502]
[1728583270895,65.98338282,136.61,136.49,0.12502]
[1728583271094,40.39380704,136.6,136.49,0.12502]
[1728583271403,1.25380704,136.59,136.49,2.32258]
[1728583271604,31.0,136.57,136.49,2.32258]
[1728583271797,3.6668,136.52,136.49,2.32258]
[1728583271993,8.14,136.56,136.49,2.32258]
[1728583272299,3.6664,136.53,136.49,2.32258]
[1728583272502,8.14,136.56,136.5,3.667]
[1728583273088,3.6662,136.54,136.5,5.86456]
[1728583273491,8.14,136.56,136.5,5.86466]
[1728583273695,8.14,136.56,136.5,2.19756]
[1728583273897,2.50789031,136.55,136.49,2.32258]
[1728583274099,3.6667,136.52,136.49,2.32258]
[1728583275502,3.6666,136.53,136.49,2.32258]
[1728583275703,8.14,136.56,136.49,2.32258]
[1728583276202,3.6661,136.54,136.49,5.98988]
[1728583276497,8.14,136.56,136.5,1.3216]
[1728583276696,3.6665,136.53,136.5,1.3216]
[1728583276897,8.14,136.56,136.5,3.51916]
[1728583277204,3.6669,136.51,136.49,2.32258]
[1728583277400,8.14,136.56,136.49,2.32258]
[1728583278000,8.14,136.56,136.49,5.98988]
[1728583278398,3.6666,136.53,136.49,5.98988]
[1728583278599,8.14,136.56,136.49,2.32258]
[1728583278903,3.6656,136.57,136.51,31.0]
[1728583279202,38.82,136.58,136.5,1.4222]
[1728583279410,3.6666,136.53,136.5,1.4222]
[1728583279603,3.6666,136.53,136.5,3.61976]
[1728583280003,3.6668,136.52,136.5,3.61976]
[1728583280196,38.82,136.58,136.5,3.61976]
[1728583280401,1.25366236,136.57,136.5,7.28686]
[1728583281000,38.82,136.58,136.5,7.28686]
[1728583281301,38.82,136.58,136.5,3.61976]
[1728583281500,38.82,136.58,136.51,3.6669]
[1728583281701,7.82,136.58,136.5,1.4222]
[1728583282000,31.12502,136.61,136.52,3.6664]
[1728583282001,7.82,136.59,136.52,3.6664]
[1728583282201,38.82,136.59,136.5,11.43976]
[1728583282398,3.6663,136.54,136.5,3.61976]
[1728583282696,0.12502,136.61,136.5,3.61976]
[1728583282899,3.6648,136.59,136.53,31.0]
[1728583283203,0.12502,136.61,136.54,1.3942]
[1728583283405,0.12502,136.61,136.54,4.99866]
[1728583283600,3.6651,136.58,136.55,3.6656]
[1728583284002,3.71883715,136.6,136.51,31.0]
[1728583284200,3.6657,136.56,136.51,33.19756]
[1728583284810,3.6654,136.57,136.54,3.666]
[1728583285198,7.82,136.59,136.54,2.19756]
[1728583285402,7.82,136.59,136.54,5.86356]